{"text_format":"1","workbook":"xlsx","n_sheets":1,"sheets":["TOTAL GENERAL (2016-2020) "],"not_rendered":{"charts":0,"images":0,"macros":0,"external_links":0,"defined_names":3,"comments":0,"pivot_tables":0},"unopened":[],"bounds":{"document_bytes":16777216,"sheet_cells":100000,"rows_first":2000,"rows_last":500,"rows_between":2000,"halvings":0,"cell_chars":16384,"cell_head_chars":4096},"cells_cut":0,"cells_raw":0,"read":"whole","date_system":"1900"}

{"sheet":"TOTAL GENERAL (2016-2020) ","index":0,"n_rows":374,"n_cols":11,"rows_kept":374,"cut":false,"hidden":false,"merged":[[2,7,2,8],[371,7,371,8]]}
[null,null,null,null,null,null,null,null,null,"Total por Línea/Eje"]
["CANTIDADES PREVISTAS CONVENIO INICIAL",13953149,18323735.859999999,18125579.23,18269345.199999999,18556877.149999999,null,null,null,{"$f":"SUM(B2:I2)","v":87228686.439999998}," SITUACIÓN AL "]
["TOTAL Programa justificado por el Cabildo  FDCAN (16-20)",{"$f":"B368","v":13855423.489999996},{"$f":"C368","v":15277028.369999999},17890217.759999998,17995388.800000001,17560211.68,null,"INDICADOR EJECUTADO ",null,{"$f":"B3+C3+D3+E3+F3","v":82578270.099999994},"CIERRE CONVENIO"]
[" Descripción de las actuaciones","JUSTIFICADO\n FDCAN 2016","JUSTIFICADO\n FDCAN 2017","JUSTIFICADO\n FDCAN 2018","JUSTIFICADO \nFDCAN 2019","JUSTIFICADO \nFDCAN 2020","TM","Denominac\n\nIndicador","Cantidad ejecutada"]
["LÍNEA ESTRATÉGICA 1. \nCONOCIMIENTO I+D+i (MAX: 5% TOTAL FDCAN)",{"$f":"B6+B9+B12","v":539064.51},{"$f":"C6+C9+C12","v":368732.12},{"$f":"D6+D9+D12","v":600000},{"$f":"E6+E9+E12","v":600000},{"$f":"F6+F9+F12","v":850000},null,null,null,{"$f":"B5+C5+D5+E5+F5","v":2957796.63}]
["Eje 1.1  Apoyo a actividades de I+D+i lideradas por empresas",{"$f":"B7+B8","v":0},{"$f":"C7+C8","v":0},{"$f":"D7+D8","v":0},{"$f":"E7+E8","v":0},{"$f":"F7+F8","v":0}]
["ACCIÓN 1: LÍNEA ABIERTA DE AYUDAS A INICIATIVAS DE I+D+i DE EBT DE FUERTEVENTURA",0,0,0,0,0,null,null,null,0,"terminada"]
["ACCIÓN 2: LÍNEA ABIERTA DE AYUDAS A LA CREACIÓN DE EBT EN FUERTEVENTURA",0,0,0,0,0,null,null,null,0,"terminada"]
["Eje 1.2  Transferencia de conocimiento entre empresas y centros de investigación",{"$f":"B10+B11","v":355338.85},{"$f":"C10+C11","v":368732.12},{"$f":"D10+D11","v":600000},{"$f":"E10+E11","v":600000},{"$f":"F10+F11","v":850000},null,null,null,{"$f":"B9+C9+D9+E9+F9","v":2774070.9699999997}]
["ACCIÓN 1: AYUDAS A LA PARTICIPACIÓN DE EBT EN EVENTOS DE I+D+i",0,0,0,0,0,null,null,null,0,"terminada"]
["ACCIÓN 2: CELEBRACIÓN DE EVENTOS DE I+D+i EN EL PARQUE TECNOLÓGICO DE FUERTEVENTURA (PTF) Y FUERTEVENTURA EN GRAL ",355338.85,368732.12,600000,600000,850000,null,null,null,{"$f":"SUM(B11:F11)","v":2774070.9699999997},"terminada"]
["Eje 1.5 Promoción de los servicios públicos digitales",{"$f":"B13","v":183725.66},0,0,0,0,null,null,null,{"$f":"B12+C12+D12+E12+F12","v":183725.66}]
["ACCIÓN 1: ADECUACIÓN DE LOS SERVICIOS PÚBLICOS INSULARES",183725.66,0,0,0,0,null,null,null,null,"Terminada "]
["LÍNEA ESTRATÉGICA 2. \nINVERSIÓN EN INFRAESTRUCTURAS (MAX 75% FDCAN)",{"$f":"SUM(B15+B62+B68+B156+B211+B224+B285+B303)","v":12035651.049999997},{"$f":"SUM(C15+C62+C68+C156+C211+C224+C285+C303)","v":12302425.449999999},{"$f":"SUM(D15+D62+D68+D156+D211+D224+D285+D303)","v":13594184.43},{"$f":"SUM(E15+E62+E68+E156+E211+E224+E285+E303)","v":13702088.900000002},{"$f":"SUM(F15+F62+F68+F156+F211+F224+F285+F303)","v":11633984.720000001},null,null,null,{"$f":"B14+C14+D14+E14+F14","v":63268334.549999997}]
["Eje 2.1 Infraestructuras de Transporte",{"$f":"SUM(B16+B19+B28+B29+B61)","v":1161548.69},{"$f":"SUM(C16+C19+C28+C29+C61)","v":3884648.76},{"$f":"SUM(D16+D19+D28+D29+D61)","v":2587838.8200000003},{"$f":"SUM(E16+E19+E28+E29+E61)","v":1384126.57},{"$f":"SUM(F16+F19+F28+F29+F61)","v":1550879.7500000005},"TM","Denominac\n\nIndicador","Cantidad ejecutada",{"$f":"B15+C15+D15+E15+F15","v":10569042.59}]
["ACCIÓN 1: Actuaciones en Carreteras de Interés Regional",{"$f":"SUM(B17:B18)","v":0},0,0,0,0,null,null,null,null,"Terminada"]
["Mejora de la carretera Fv-3, Circunvalación a Puerto del Rosario, entre los PP.KK 3+860 y 6,730  ",0,0,0,0,0,"PUERTO ROSARIO",null,null,"Terminada; no elegible FDCAN"]
["Mejora de la carretera Fv-1 entre los PP.KK 1+930 a 5+220 y 8+640 a 12+880 (Conexión entre Puerto del Rosario y Corralejo)  ",0,0,0,0,0,"PUERTO ROSARIO-LA OLIVA",null,null,"Terminada; no elegible FDCAN"]
["ACCIÓN 2: Reasfaltado y  mejora del firme Vías Municipales interpoblacionales",{"$f":"SUM(B20:B27)","v":31384.83},{"$f":"SUM(C20:C27)","v":1064178.18},{"$f":"SUM(D20:D27)","v":698125.84000000008},{"$f":"SUM(E20:E27)","v":561896},{"$f":"SUM(F20:F27)","v":0},null,"km\nCarrt.\nMejor.",{"$f":"SUM(I21:I27)","v":30.642000000000003},{"$f":"B19+C19+D19+E19+F19","v":2355584.85},"terminada parcial"]
["INFORME COSTES DE PERSONAL DIRECTO E INDIRECTO:",3257.74,38258.370000000003,25985.58,0,0,null,null,null,{"$f":"B20+C20+D20+E20+F20","v":67501.69}]
["Pavimentación y señalización de La FV-225 (TM Puerto del Rosario)",7476.09,491178.2,0,0,0,"PUERTO ROSARIO","km",3.5,{"$f":"B21+C21+D21+E21+F21","v":498654.29000000004},"Finalizada"]
["Acondicionamiento y repavimentación de la carretera FV - 103 entre Vallebrón y el cruce con la carretera FV - 10  ",0,7232.63,334576.81,0,0,"LA OLIVA","km",4.6580000000000004,341809.44,"Finalizada"]
["Acondicionamiento y repavimentación de la carretera entre Lajares y Majanicho ",0,11556.44,6087.9,561896,0,"LA OLIVA","km",6.484,579540.34,"Finalizada"]
["Acondicionamiento de la carretera asfaltada de acceso a Playa La Barca \n",2675,0,0,0,0,"PÁJARA","km",0,2675,"Próx. FDCAN  "]
["Asfaltado de caminos rurales y reasfaltado de calles en diferentes núcleos del municipio de Pájara. Fase I ",17976,446973.89,331475.55,0,0,"PÁJARA","km",6,796425.44,"Finalizada"]
["Acondicionamiento de nueva pista de tierra para el acceso de vehículos en el barranco de La Pared",0,50171.89,0,0,0,"PÁJARA","km",10,50171.89,"Finalizada"]
["Reasfaltado, sustitución bordillos y ejecución red de pluviales Avda del Saladar en Solana Matorral",0,18806.759999999998,0,0,0,"PÁJARA","km",0,18806.759999999998,"Próx. FDCAN  "]
["ACCIÓN 3: Marquesinas en Paradas de guaguas en zonas turísticas",0,0,0,0,0,null,null,null,{"$f":"B28+C28+D28+E28+F28","v":0},"Cancelada"]
["ACCIÓN 4: Actuaciones en Carreteras Insulares",{"$f":"SUM(B30:B60)","v":1130163.8599999999},{"$f":"SUM(C30:C60)","v":2820470.5799999996},{"$f":"SUM(D30:D60)","v":1889712.9800000002},{"$f":"SUM(E30:E60)","v":822230.57000000007},1550879.7500000005,null,"km\nCarrt.\nMejor.",{"$f":"SUM(I31:I60)","v":76.429999999999993},{"$f":"B29+C29+D29+E29+F29","v":8213457.7400000002},"terminada parcial"]
["INFORME COSTES DE PERSONAL DIRECTO E INDIRECTO:",{"$f":"64587.98+137572.67","v":202160.65000000002},190064.21,155754.67000000001,0,0,null,null,null,{"$f":"B30+C30+D30+E30+F30","v":547979.53}]
["Mejora de la carretera Fv-10 entre los PP.KK 22+300 y 30+500 (entre la intersección del cementerio y glorieta de Lajares) ",928003.21,52233.15,0,0,0,"LA OLIVA","km",8.1999999999999993,980236.36,"Finalizada"]
["Mejora del firme de la carretera Fv-56 entre los PP.KK 0+050 y 8+360 (La Lajita - Cruce de las Hermosas)",0,713345.35,0,0,0,"PÁJARA-TUINEJE","km",8.4,713345.35,"Finalizada"]
["Rehabilitación superficial del firme de la carretera Fv-20 entre los PP.KK 12+580 al 15+480",0,393951.24,0,0,0,"PUERTO ROSARIO","km",2.9,393951.24,"Finalizada"]
["Rehabilitación superficial del firme de la carretera Fv-30 entre los PP.KK 9+860 a 13+640 y 14+840 a 15+560",0,401692.62,0,0,0,"BETANCURIA","km",4.5,401692.62,"Finalizada"]
["Mejora del firme de la carretera Fv-219 entre los PP.KK 0+000 y 2+710 (El Time)",0,215779.21,0,0,0,"PUERTO ROSARIO","km",2.71,215779.21,"Finalizada"]
["Mejora del firme de la carretera Fv-511 entre los PP.KK 0+000 y 5+640 (Tesejerague - Glorieta Fv-2)",0,498473.43,0,0,0,"TUINEJE","km",5.68,498473.43,"Finalizada"]
["Mejora del firme de la carretera Fv-520 entre los PP.KK 0+070 y 3+480 (Cruce Fv-4 - Cruce de Araña)",0,342540.98,0,0,0,"TUINEJE","km",3.41,342540.98,"Finalizada"]
["Mejora del firme y drenaje de la carretera FV - 10 entre los PP.KK 30+500 y 35+350  (Glorieta de Lajares-El Roque)",0,0,0,0,1052533.04,"LA OLIVA","km",4.8499999999999996,1052533.04,"Finalizada"]
["ACOND. CTRA. FV-520 ENTRE PPKK 0+000 Y 3+550 (CRUCE FV-4-CRUCE ARAÑA) LOTE Nº17 ",0,0,0,0,0,"LA OLIVA","km",null,0]
["Rehabilitación superficial del firme de la carretera FV-10 entre los PP.KK  35+350 y 36+900 (El Roque-El Cotillo)",0,0,0,0,6030.62,"LA OLIVA","km",0,6030.62,"Próx. FDCAN  "]
["Mejora del firme de la carretera FV - 220 entre los PP.KK 0+680 y 1+720 (Entrada a La Asomada)",0,0,92933.07,8837.68,0,"PUERTO ROSARIO","km",1.4,101770.75,"Finalizada"]
["Mejora del firme de la carretera FV - 207 entre los PP.KK 0+000 y 7+040 (Cruce La Matilla-Tefía-Montaña de Tao)",0,2514.5,500617.94,60012.85,0,"PUERTO ROSARIO","km",7.04,563145.29,"Finalizada"]
["Mejora del firme de la carretera FV - 10 entre los PP.KK 12+930 al 14+640 y PP.KK. 18+520 al22+300 (TM Pto Rosario: La Matilla-Cruce Tefía; TM La Oliva: Tindaya-La Oliva)",0,2517.65,464772.5,62759.4,0,"PUERTO ROSARIO-LA OLIVA","km",5.31,530049.55000000005,"Finalizada"]
["Mejora del firme de la carretera FV - 30 entre los PP.KK 0+120 al 2+640 y PP.KK. 4+830 al 7+130 (TM Pto: Cruce Casillas Angel-rotonda Almácigo; Almácigo-Llanos de la Concepción; TM Betancuria: Valle de Sta Inés)",0,2514.5,421226.04,25795.64,0,"PUERTO ROSARIO / BETANCURIA","km",5,449536.18,"Finalizada"]
["Mejora del firme de la carretera FV - 101 entre los PP.KK 0+000 al 1+340, PP.KK. 3+350 al 3+950 y PP.KK. 7+760 al 9+410  (La Oliva-Villaverde-Cruce Lajares)",0,2517.65,101914.92,167905.34,0,"LA OLIVA","km",5.68,272337.90999999997,"Finalizada"]
["Mejora del firme de la carretera FV - 214 entre los PP.KK 0+000 y 4+95 (Glorieta Guisguey-Guisguey)",0,2326.09,147143.84,488399.66,0,"PUERTO ROSARIO","km",4.8499999999999996,637869.59,"Finalizada"]
["Travesía Villaverde FV-101. medidas previsionales para la reducción de la velocidad del tráfico",0,0,0,0,{"$f":"150638.62","v":150638.62},"LA OLIVA","km",2.8,150638.62,"Finalizada"]
["Pavimentación acceso a FEAGA TM Antigua FV-420 ppkk 5+260 a 5+830 ",0,0,1926,0,0,"ANTIGUA","km",0,1926,"Próx. FDCAN  "]
["Mejora firme  FV-207 ppkk 7+050 a 10+750 (Tefía-Glorieta Almácigo)",0,0,0,0,302417.8,"PUERTO ROSARIO","km",3.7,302417.8,"Próx. FDCAN  "]
["Mejora firme  FV-416  ppkk 0+000 a 3+290 (Antigua-Glorieta Valle de Sta Inés)",0,0,0,0,0,"ANTIGUA","km",0,0,"Próx. FDCAN  "]
["Mejora firme  FV-323  ppkk 0+000 a 0+300 (Nueva ODT carretera de La Banda)\n",0,0,1712,0,0,"BETANCURIA","km",0,1712,"Próx. FDCAN  "]
["Rehab.superf.firme FV-10 ppkk 0+790 a  1+470  (Avda Juan de Bethencourt)  \n",0,0,0,0,29912.6,"PUERTO ROSARIO","km",0,29912.6,"Próx. FDCAN  "]
["Rehab.superf.firme FV-20 ppkk 0+000 a  1+980  (Antiguo cementerio-Circunvalación) ",0,0,0,0,0,"PUERTO ROSARIO","km",0,0,"Próx. FDCAN  "]
["Rehab.superf.firme FV-20 ppkk 4+250 a  6+150  (Glorieta vertedero-Llanos Pelados)\n",0,0,0,0,2766.57,"PUERTO ROSARIO","km",0,2766.57,"Próx. FDCAN  "]
["Rehab.superf.firme FV-20 ppkk 25+150 y 29+250  (Cuesta de Pedrales-Tiscamanita)  FDCAN 2022/2026",0,0,0,0,0,"ANTIGUA-TUINEJE","km",0,0,"Próx. FDCAN  "]
["Acond.puntual de la FV-30 a su paso por Betancuria (ppkk 15+480 a 15+660)\n",0,0,1712,0,0,"BETANCURIA","km",0,1712,"Próx. FDCAN  "]
["Rehab.superf.firme FV-30 ppkk 7+130 a  9+860  (Valle Sta Inés-Glorieta del Valle)",0,0,0,0,0,"BETANCURIA","km",0,0,"Próx. FDCAN  "]
["Rehab.superf.firme FV-605 entre los ppkk 11+740 a  20+000  (Mirador de Sicasumbre-Cruce de Las Hermosas)",0,0,0,0,6580.5,"TUINEJE","km",0,6580.5,"Próx. FDCAN  "]
["Acceso Colegio de Villaverde FV-101\n",0,0,0,8520,0,"LA OLIVA","km",0,8520,"Próx. FDCAN  "]
["Mejora FV-10 PK 2,5 a 8,330 Glorieta de Tetir  FDCAN 2021/2025",0,0,0,0,0,"PUERTO ROSARIO","km",0,0]
["ACCIÓN 5: Marquesinas en Paradas de guaguas en zonas estratégicas del sistema viario insular (Aeropuerto, Corralejo  y Betancuria)",0,0,0,0,0,null,null,null,{"$f":"B61+C61+D61+E61+F61","v":0},"Cancelada"]
["Eje 2.2 Infraestructuras científicas y tecnológicas",{"$f":"SUM(B63+B65)","v":39918.620000000003},{"$f":"SUM(C63+C65)","v":37811.96},{"$f":"SUM(D63+D65)","v":210.8},{"$f":"SUM(E63+E65)","v":17999.990000000002},{"$f":"SUM(F63+F65)","v":0},null,null,null,{"$f":"B62+C62+D62+E62+F62","v":95941.37000000001}]
["ACCIÓN 1: Dotación del laboratorio agroalimentario de Fuerteventura",{"$f":"B64","v":39918.620000000003},{"$f":"C64","v":37811.96},{"$f":"D64","v":0},0,0,null,null,null,{"$f":"B63+C63+D63+E63+F63","v":77730.58},"terminada parcial"]
["Dotación del Laboratorio Agroalimentario de Fuerteventura: analíticas Letra Q  ",39918.620000000003,37811.96,0,0,0,"ANTIGUA",null,null,null,"Próx. FDCAN  "]
["ACCIÓN 2: Centros de innovación tecnológica ",{"$f":"SUM(B67)","v":0},{"$f":"SUM(C67)","v":0},{"$f":"SUM(D66:D67)","v":210.8},17999.990000000002,0,null,null,null,{"$f":"B65+C65+D65+E65+F65","v":18210.79},"terminada parcial"]
["INFORME COSTES DE PERSONAL DIRECTO E INDIRECTO:",0,0,210.8,0,0,null,null,null,{"$f":"B66+C66+D66+E66+F66","v":210.8}]
["Centro de Innovación tecnológica y sede de la Reserva de la Biosfera de Fuerteventura ",0,0,0,17999.990000000002,0,"PUERTO ROSARIO",null,null,null,"Próx. FDCAN"]
["Eje 2.3 Creación. Mejora de espacios con potencialidad turística",{"$f":"B69","v":8135075.6999999983},4244520.5200000005,4300879.55,3175499.4800000004,2496422.7599999998,null,"Denominac\n\nIndicador","Cantidad ejecutada",{"$f":"B68+C68+D68+E68+F68","v":22352398.009999998}]
["ACCIÓN 1: Mejora de infraestructura uso general en espacios públicos Fuerteventura ",{"$f":"SUM(B70:B155)","v":8135075.6999999983},{"$f":"SUM(C70:C155)","v":4244520.5200000005},{"$f":"SUM(D70:D155)","v":4300879.55},{"$f":"SUM(E70:E155)","v":3175499.4800000004},{"$f":"SUM(F70:F155)","v":2496422.7599999998},null,"m2 Superf. mejorada",{"$f":"SUM(I71:I155)-I150","v":350461.32},{"$f":"B69+C69+D69+E69+F69","v":22352398.009999998},"terminada parcial"]
["INFORME COSTES DE PERSONAL DIRECTO E INDIRECTO",{"$f":"71894.63+153135.87","v":225030.5},185885.64,160086.97,0,{"$f":"46141.98+30224.01","v":76365.990000000005},null,null,null,{"$f":"B70+C70+D70+E70+F70","v":647369.1}]
["CABILDO:",null,null,null,null,null,null,null,null,0]
["Redacc.proyecto \"Acond.Mirador Carretera FV30 Valle de Santa Inés\" ",0,9095,0,0,4066,"BETANCURIA","m2",0,13161,"Próx. FDCAN  "]
["Redacc.proyecto \"Mirador Carretera FV20  El Almácigo\"  ",0,4066,0,176755.12,36881.22,"PUERTO ROSARIO","m2",2911.32,217702.34,"Finalizada"]
["Aparcamientos y accesos al Mirador de Unamuno",18355.849999999999,1605,0,0,0,"PUERTO ROSARIO","m2",0,19960.849999999999,"Próx. FDCAN "]
["Equipamiento cafetería del Edificio de Formación y Congresos ",{"$f":"40589.18+35063.02","v":75652.2},0,0,0,0,"PUERTO ROSARIO","m2",202.99,75652.2,"Finalizada"]
["Acondicionamiento de talud en el tramo de prolongación carretera FV-2 pk 0+560 al pk0+731 (hospital)",4066,51780.94,0,0,0,"PUERTO ROSARIO","m2",569.98,55846.94,"Finalizada"]
["Acondicionamiento de talud en el tramo de autovía Fv-2 pk 01+875 al pk 02+015 (gasolinera)  (infra-013/17)",4066,144466.39000000001,21803.85,0,0,"PUERTO ROSARIO","m2",971.51,170336.24000000002,"Finalizada"]
["Césped sintético en isletas en cruces de La Oliva, Puerto del Rosario y Morro Jable",11420.38,0,0,0,0,"PUERTO ROSARIO-LA OLIVA-PÁJARA","m2",null,11420.38,"Finalizada"]
["Acondicionamiento mediana en el tramo autovía FV-2",3210,66232.179999999993,355305.11,0,0,"PUERTO ROSARIO","m2",24048.5,424747.29,"Finalizada"]
["Acondicionamiento de la rotonda de circunvalación FV-3 con FV-10 t.m. Puerto Rosario",30992.560000000001,0,0,0,0,"PUERTO ROSARIO","m2",null,30992.560000000001,"Finalizada"]
["Remodelación de La Fv-10 pk 0+270  -  pk 0+855 Avenida Juan de Bethencourt  ",17655,272.79000000000002,0,0,0,"PUERTO ROSARIO","m2",null,17927.79,"Próx. FDCAN  "]
["Acondicionamiento vía de acceso al Mirador del Barranco de los Canarios ",0,40660,0,0,0,"PÁJARA","m2",null,40660,"Próx. FDCAN  "]
["Acondicionamiento rotonda FV-3 con FV-20",0,0,2487.75,0,0,"PUERTO ROSARIO","m2",null,2487.75]
["Reposición de infraestructuras y bienes destinados al uso general (Acondic.rotondas,..) INSTALACIÓN DE CÉSPED ARTIF.MEDIANA Y ROTONDA DE LA C/EUSTAQUIO JUAN SANTANA GIL ",199959.01,13034.28,0,0,0,"PÁJARA","m2",488.5,212993.29,"Finalizada"]
["Reposición de infraestructuras y bienes destinados al uso general: ACOND. ROTONDA DEL CARTERO. TARAJALEJO- FV-2 PK 48,50,  (Lote 1)",0,0,0,16396.599999999999,0,"TUINEJE","m2",888.25,16396.599999999999,"Finalizada"]
["Reposición de infraestructuras y bienes destinados al uso general: ACOND. ROTONDA DE ENTRADA A MORRO JABLE. (Lote 2)",0,0,9829.93,0,0,"PÁJARA","m2",1041.3,9829.93,"Finalizada"]
["Reposición de infraestructuras y bienes destinados al uso general:ACOND.ROTONDA EN LA FV-2, CON FV-605, DIRECCION A LA PARED. (Lote 3)",0,0,21138.25,68.400000000000006,0,"PÁJARA","m2",1133.54,21206.65,"Finalizada"]
["Reposición de infraestructuras y bienes destinados al uso general: ACONDI.ROTONDA DE TARAJALEJO,  FV-2, PK-60,53.  (Lote 4)",0,0,42284.4,4214.34,0,"TUINEJE","m2",1577.31,46498.740000000005,"Finalizada"]
["Reposición de infraestructuras y bienes destinados al uso general: ACOND. ROTONDA EN MATAS BLANCAS. ENLACE FV-2 CON FV-603.  (Lote 5)",0,0,8884.25,0,0,"PÁJARA","m2",415.27,8884.25,"Finalizada"]
["Reposición de infraestructuras y bienes destinados al uso general: ACOND.ROTONDA EN COSTA CALMA, CARRETERA FV-2, ENLACE NORTE.(Lote 6)",0,0,10070.14,0,0,"TUINEJE","m2",254.34,10070.14,"Finalizada"]
["Reposición de infraestructuras y bienes destinados al uso general: ACOND. ROTONDA EN MATAS BLANCAS. FV-2, ENLACE NORTE. ",0,0,8981.2800000000007,0,0,"PÁJARA","m2",200.96,8981.2800000000007,"Finalizada"]
["Reposición de infraestructuras y bienes destinados al uso general: ACOND.ROTONDA EN LA  FV-2, COSTA CALMA-EL GRANILLO.",0,0,46056.93,3885.44,0,"PÁJARA","m2",2826,49942.37,"Finalizada"]
["Ayto La Oliva: Plaza de La Caldereta",188773.34,0,0,0,0,"LA OLIVA","m2",null,188773.34,"Finalizada"]
["Ayto La Oliva: Acondic. Aceras Bristol a CF Corralejo",{"$f":"93312.35+9035.86","v":102348.21},0,0,0,0,"LA OLIVA","m2",null,102348.21,"Finalizada"]
["SERVICIO DE TURISMO: Infraestructuras turísticas en toda la isla",173269.18,0,0,0,0,"INSULAR","m2",null,173269.18,"Finalizada"]
["AYUNTAMIENTO DE ANTIGUA:"]
["S/JUSTIFICACIÓN FDCAN ANTIGUA 2016",{"$f":"2525033.36+2096322.95","v":4621356.3099999996},0,0,0,0,"ANTIGUA","m2",71153.62,4621356.3099999996,"Finalizada"]
["Remodelación calle peatonal Orchilla Tramo 3 (Caleta de Fuste) (TM Antigua)",0,133106.96,683112.52,56847.03,0,"ANTIGUA","m2",7254.25,873066.51,"Finalizada"]
["Remodelación calle peatonal Orchilla Tramo 4 (Caleta de Fuste) FDCAN 2021/2025",0,0,0,0,0,"ANTIGUA","m2",null,0,"Próx. FDCAN  en curso"]
["Remodelación integral Calle Pablo Picasso (Caleta de Fuste)  FDCAN 2021/2025",0,0,0,0,0,"ANTIGUA","m2",null,0,"Próx. FDCAN  en curso"]
["Remodelación integral de Avda Virgen de la Peña (Caleta de Fuste)  FDCAN 2021/2025",0,0,0,0,0,"ANTIGUA","m2",null,0,"Próx. FDCAN  en curso"]
["Pavimentación de aceras calles Relinchón, Turmero, Cardón y Acebuche",0,0,0,0,898845.69,null,"m2",775,898845.69,"Finalizada"]
["Acond. de la plataforma de aparcamientos del Museo del Queso y del Molino de Antigua FDCAN 2021/2025",0,0,0,0,0,"ANTIGUA","m2",null,0]
["Paseo Nuevo Horizonte - El Matorral  FDCAN 2021/2025",0,0,0,0,0,"ANTIGUA","m2",null,0]
["T.M. BETANCURIA:",null,null,null,null,null,null,null,null,0]
["Acondicionamiento y mejora de la calle Amador Rodríguez en Betancuria ",4066,{"$f":"13484.37+20855.9+15141.6","v":49481.87},5058.99,7196.84,0,"BETANCURIA","m2",950.45,65803.7,"Finalizada"]
["Redacción Proyecto Espacio Regeneración Turística de  Betancuria \nFDCAN 2021/2025",0,0,0,0,0,"BETANCURIA","m2",null,0]
["Acondicionamiento y mejora paisajística de Espacio Público en la Villa de Betancuria",0,4494,0,0,134216.17000000001,"BETANCURIA","m2",null,138710.17000000001,"Próx. FDCAN  "]
["Acondicionamiento calle San Buenaventura (Betancuria)",0,0,0,2556,48096.43,null,"m2",1806,50652.43,"Finalizada"]
["Acondicionamiento calle Presidente Hormiga (Betancuria)",0,0,0,2715.75,28923.200000000001,null,"m2",980,31638.95,"Finalizada"]
["Acondicionamiento calle Real (Valle Sta Inés)",0,0,0,2556,39484.959999999999,null,"m2",1130,42040.959999999999,"Finalizada"]
["Acondicionamiento ramal camino Gran Barranco (Valle Sta Inés)",0,0,0,2556,60883.1,null,"m2",1806,63439.1,"Finalizada"]
["T.M. LA OLIVA:",null,null,null,null,null,null,null,null,0]
["Reasfaltado avda Pedro Guy Vandaele en Corralejo (TM La Oliva)",0,726854.15,0,0,0,"LA OLIVA","m2",24570,726854.15,"Finalizada"]
["Acond.y mejora Avda Juan Carlos I en Corralejo ",357441,0,0,0,0,"LA OLIVA","m2",35625,357441,"Finalizada"]
["Plan de accesibilidad de Corralejo Fase I. Calles Bajo Blanco, Bocinegro, Brújula, Pejín, Radio Ecca, Francisco Navarro Artíles, Anzuelo, Falúa y Palangre ",{"$f":"775681.42+17810","v":793491.42},0,0,0,0,"LA OLIVA","m2",{"$f":"2554.6+2780.5+6101.2+4850.85+2423+2641.4","v":21351.550000000003},793491.42,"Finalizada"]
["Asfaltado aparcamientos urb.GEAFON Corralejo",14872.98,0,0,0,0,"LA OLIVA","m2",968.64,14872.98,"Finalizada"]
["Asfaltado Avda Fuerteventura y calle El Pozo en Corralejo",188311.05,0,0,0,0,"LA OLIVA","m2",11014.88,188311.05,"Finalizada"]
["Sistema costero: IC-01. Recuperación de los accesos al mar:  Plan de modernización de Corralejo, en calles Arístides Hernández Morán, La Red, Poseidón, Bahía u Poseidón en su remate final ",8881,3210,223340.41,0,0,"LA OLIVA","m2",{"$f":"860.57+683.48+727.31","v":2271.36},235431.41,"Finalizada"]
["Plan de accesibilidad de Corralejo. Accesibilidad de Corralejo Fase I. Calles Pizarro, Malpais, Cho León y Juan Sebastián El Cano ",4173,11128,525478.56999999995,0,0,"LA OLIVA","m2",{"$f":"2471+1713+1718","v":5902},540779.56999999995,"Finalizada"]
["Plan de accesibilidad de El Cotillo\n (Itinerarios 6-8A-8B)",0,5885,0,0,326358.94,"LA OLIVA","m2",5971,332243.94,"Finalizada"]
["Acondicionamiento y pavimentación de zonas libres y espacion públicos en El Cotillo ",0,0,77986.97,0,0,"LA OLIVA","m2",345.45,77986.97,"Finalizada"]
["Acondicionamiento de aceras en Geafond en C/ Guirre",0,8560,0,1244157.46,35823.879999999997,"LA OLIVA","m2",10159.290000000001,1288541.3399999999,"Finalizada"]
["Acondicionamiento y repavimentación de la Avda. Ntra. Sra. Del Carmen entre la glorieta de la FV - 1 y la Avda Fuerteventura ",0,6762.2,316209.96999999997,0,0,"LA OLIVA","m2",9900,322972.17,"Finalizada"]
["Mejora de la C/ Paseo Atlántico, en Corralejo ",0,0,0,0,48618.77,"LA OLIVA","m2",370,48618.77,"Finalizada"]
["Remodelación de la Plaza de Ermita de San Vicente Ferrer, en Villaverde ",0,7200,34852.74,204051.55,0,"LA OLIVA","m2",1346.43,246104.28999999998,"Finalizada"]
["T.M. PUERTO DEL ROSARIO:",null,null,null,null,null,null,null,null,0]
["VARIAS ACTUACIONES EJECUTADAS POR EL AYTO PUERTO ROSARIO  APLICADAS AL FDCAN2016",687823.18,0,0,0,0,"PUERTO ROSARIO","m2",43773.04,687823.18,"Finalizada"]
["II Fase Centro urbano de Casillas del Angel (TM Puerto del Rosario)",14980,0,0,172438.28,347278.78,"PUERTO ROSARIO","m2",4028,534697.06000000006,"Finalizada"]
["Pavimentación de aceras calle León y Castillo  ",0,1498,0,0,0,"PUERTO ROSARIO","m2",null,1498,"Finalizada"]
["Peatonalización del tramo de la carretera de Los Pozos. Acondicionamiento Rodonal y peatonal calle carretera de Los Pozos",0,897362,0,0,0,"PUERTO ROSARIO","m2",6080.99,897362,"Finalizada"]
["Peatonalización del tramo de la carretera de Los Pozos. Accesibilidad playa  de Los Pozos",0,81833.62,0,0,0,"PUERTO ROSARIO","m2",765,81833.62,"Finalizada"]
["Remodelación de los hornos de cal de El Charco. Rehabilitación hornos de cal HC 18 y su entorno (El Charco)",0,140723.69,190676.62,0,0,"PUERTO ROSARIO","m2",3678,331400.31,"Finalizada"]
["Centro de interpretación de los Hornos de cal de Puerto del Rosario",0,150095.14000000001,73272.3,127081.53,0,"PUERTO ROSARIO","m2",314.32,{"$f":"B134+C134+D134+E134+F134","v":350448.97},"Finalizada"]
["Rehabilitación de los hornos de cal HC - 16 y HC - 17",0,249361.02,237121,0,0,"PUERTO ROSARIO","m2",2561.37,486482.02,"Finalizada"]
["Acondic Borde Litoral Puerto del Rosario - Playa Blanca",0,0,0,0,0,"PUERTO ROSARIO","m2",null,0]
["Pavimentación de aceras en diversas zonas de Puerto del Rosario",0,0,0,0,0,"PUERTO ROSARIO","m2",null,0]
["Mejora de Accesibilidad Urbana: Pavimentos de Aceras",0,0,0,0,0,"PUERTO ROSARIO","m2",null,0]
["Adecuación Paisajística, Carril Bici y entornos periurbanos en Puerto del Rosario",0,0,0,0,0,"PUERTO ROSARIO","m2",null,0]
["Diversas actuaciones de Rehabilitación, Embellecimiento, Instalaciones y Equipamiento, en espacios públicos, zona urbana de Puerto del Rosario",0,0,0,0,0,"PUERTO ROSARIO","m2",null,0]
["T.M. PÁJARA"]
["VARIAS ACTUACIONES EJECUTADAS POR EL AYTO PÁJARA APLICADAS AL FDCAN2016",{"$f":"4302.52+19621.47+18287.37+25544.97+6015.45","v":73771.78},0,0,0,0,"PÁJARA","m2 Superf. mejorada",{"$f":"8.25+930+764.58+330","v":2032.83},73771.78,"Finalizada"]
["Acondicionamiento de la Plaza de La Lajita  FASE II",225077.09,0,283740.25,68269.03,0,"PÁJARA","m2 Superf. mejorada",3412.82,577086.37,"Finalizada"]
["Acondicionamiento del Bulevar El Timón (Morro Jable)",0,182022.51,0,0,0,"PÁJARA","m2 Superf. mejorada",3120,182022.51,"Finalizada"]
["Mantenimiento y mejora de la Plaza de la desembocadura del Barranco del Ciervo",0,74008.5,0,0,0,"PÁJARA","m2 Superf. mejorada",1816,74008.5,"Finalizada"]
["Acondicionamiento del entorno de la Iglesia de Pájara",0,10317.48,531718.56999999995,0,0,"PÁJARA","m2",4693,542036.04999999993,"Finalizada"]
[" Museo Pepe Dámaso ",0,196288.84,389449.35,1083754.1100000001,196749.68,"PÁJARA","m2",859,1866241.98,"Finalizada"]
["Mejoras accesos peatonales de playas y pavimentación de plataformas hormigón de módulos de aseo de servicio público exist.en playas del municipio de Pájara",0,53349.81,0,0,0,"PÁJARA","m2 superf.mejorada",370,53349.81,"Finalizada"]
["Suministro y colocación de módulos de aseo de servicio público en sustitución de baños existentes en las playas del municipio de Pájara",0,255642.59,0,0,0,"PÁJARA","m2 superf.mejorada",84,255642.59,"Finalizada"]
["Obras de colocación de barandillas de protección en acera de la Calle Biocho, en la zona cercana al completo Stella Canaris (Morro Jable)",0,43964.639999999999,0,0,0,"PÁJARA","ml colocados de barandilla",286,43964.639999999999,"Finalizada"]
["Acceso al Puerto de Morro Jable por la calle Atolladero",0,0,0,0,213829.95,"PÁJARA","m2",4120,213829.95,"Finalizada"]
["T.M. TUINEJE:",null,null,null,null,null,null,null,null,0]
["Acondic. y mejora de Puerto Azul, Tarajalejo: ACERAS  ",{"$f":"64975.06+7276","v":72251.06},188652.45,0,0,0,"TUINEJE","Superf.m2",1393.65,260903.51,"Finalizada"]
["Acondic. y mejora de Puerto Azul, Tarajalejo: MEJORA DEL FIRME DE CALLES EN PUERTO AZUL Y TARAJALEJO",5296.5,0,0,0,0,"TUINEJE","Superf.m2",0,5296.5,"Próx. FDCAN  "]
["Reasfaltado en Tuineje y en Tiscamanita  ",8485.1,245619.83,41932.43,0,0,"TUINEJE","m2",14178.61,296037.36,"Finalizada"]
["Eje 2.4 Infraestructuras hidráulicas",{"$f":"B157+B171+B173+B201+B183+B203+B207","v":560062.22},{"$f":"C157+C171+C173+C201+C183+C203+C207","v":194481.89},{"$f":"D157+D171+D173+D201+D183+D203+D207","v":2619911.83},{"$f":"E157+E171+E173+E201+E183+E203+E207","v":7424970.2500000009},{"$f":"F157+F171+F173+F201+F183+F203+F207","v":3783365.01},null,"Denominac\n\nIndicador","Cantidad ejecutada",{"$f":"SUM(B156:F156)","v":14582791.200000001}]
["ACCIÓN 1: Ampliación y mejora de los medios de producción de agua: actuación en los sistemas de desalación ",{"$f":"SUM(B159:B170)","v":0},137664.79,187799.25,669518.82999999996,{"$f":"SUM(F158:F170)","v":1046421.44},null,"poblac Beneficiada",100000,{"$f":"B157+C157+D157+E157+F157","v":2041404.31},"Terminada"]
["INFORME COSTES DE PERSONAL DIRECTO E INDIRECTO:",0,0,0,0,{"$f":"19341.26+12668.95","v":32010.21},null,null,null,{"$f":"B158+C158+D158+E158+F158","v":32010.21}]
["Suministros de bombas motores y variadores de frecuencia en Planta desaladora de Puerto del Rosario ",0,137664.79,187799.25,0,0,"PUERTO ROSARIO","habitant.",100000,325464.04000000004,"Finalizada"]
["Adquisición 3módulos de desalación: Lote1-Pto.Rosario,Lote2-Corralejo,Lote3-GT",0,0,0,669518.82999999996,{"$f":"509232.22+505179.01","v":1014411.23},"INSULAR","habitant.",{"$f":"74207+12123+14180","v":100510},1683930.06,"Finalizada"]
["Remineralización con lechos de calcita agua desalada IDAM Pto Rosario  FDCAN 2021/2025",0,0,0,0,0,null,"habitant.",null,0]
["Ampliación y mejora EDAM Corralejo  FDCAN 2021/2025",0,0,0,0,0,null,"habitant.",null,0]
["Ampliación y mejora EDAM Puerto del Rosario IV-2ª fase  FDCAN 2021/2025",0,0,0,0,0,null,"habitant.",null,0]
["Reforma general centro transformación C200203 EDAM Corralejo  FDCAN 2021/2025",0,0,0,0,0,null,"habitant.",null,0]
["Almacén de productos químicos destinados al tratamiento de agua potable EDAM Puerto del Rosario  FDCAN 2021/2025",0,0,0,0,0,"LA OLIVA","habitant.",null,0]
["Actuación obra civil y paramentos en EDAM Gran Tarajal  FDCAN 2021/2025",0,0,0,0,0,null,"habitant.",null,0]
["Suministro e instalación de filtros de arena en EDAM Gran Tarajal  FDCAN 2021/2025",0,0,0,0,0,null,"habitant.",null,0]
["Ampliación y mejora EDAM F VIII Puerto del Rosario",0,0,0,0,0,"PUERTO ROSARIO","habitant.",null,0]
["Ampliación y mejora EDAM Gran Tarajal",0,0,0,0,0,"TUINEJE","habitant.",null,0]
["Suministro equipos bombeo y cuadros eléctricos estaciones bombeos red abastecimiento insular",0,0,0,0,0,"FUERTEVENTURA","habitant.",null,0]
["ACCIÓN 2: Sistema energético renovable de generación eléctrica eólica para el autoconsumo de las desaladoras, en el Centro producción Puerto del Rosario",{"$f":"SUM(B172:B172)","v":0},{"$f":"SUM(C172:C172)","v":0},{"$f":"SUM(D172:D172)","v":216071.8},2739822.1,0,null,"poblac Beneficiada",100000,2955893.9,"Terminada"]
["Parque Eólico de 2 MW con consumos asociados a la desaladora CAAF Puerto del Rosario ",0,0,216071.8,2739822.1,0,"PUERTO ROSARIO","habitant.",100000,2955893.9,"Finalizada"]
["ACCIÓN 3: Rehabilitación y ampliación de depósitos de reserva y distribución hidráulica",{"$f":"SUM(B175:B178)","v":274990.90999999997},{"$f":"SUM(C175:C178)","v":15801.6},{"$f":"SUM(D175:D178)","v":92064.25},{"$f":"SUM(E175:E178)","v":0},{"$f":"SUM(F175:F182)","v":2514376.0499999998},null,"ml de long.de red",{"$f":"I177+I178+I180","v":8447},2897232.8099999996,"Terminada"]
[null,null,null,null,null,null,null,"m3 capacidad",{"$f":"I179+I180+I181","v":56544}]
["INFORME COSTES DE PERSONAL DIRECTO E INDIRECTO:",24565.94,0,6101.48,0,{"$f":"46473.82+30441.37","v":76915.19},null,null,null,107582.61]
["REPARACIÓN DEPÓSITO DE LA HERRADURA (CONVENIO CAAF)",250424.97,0,0,0,0,null,null,null,250424.97,"Finalizada"]
["Ejecución obras recogidas en el \"Proyecto de colocación automatismos y mejora red de riego Solana Matorral”",0,15801.6,0,0,0,null,"ml",370,15801.6,"Finalizada"]
["Sustitución de tramo de la red general de agua potable Morro Jable-Solana Matorral",0,0,85962.77,0,0,null,"ml",650,85962.77,"Finalizada"]
["Mejora Depósitos Puerto del Rosario",0,0,0,0,1573667.76,"PUERTO R","m3",{"$f":"8167+8167+8660+8660+313+441+635+635+430","v":36108},1573667.76,"Finalizada"]
["Mejoras Depósitos La Oliva - Betancuria",0,0,0,0,416579.64,"LA OLIVA  BETANCURIA","m3",{"$f":"162+650+42+639+593+441+1789+115+2169+260+567","v":7427},416579.64,"Finalizada"]
["Mejoras Depósitos Antigua - Tuineje - Pájara",0,0,0,0,447213.46,"ANTIGUA TUINEJE PÁJARA","m3",13009,447213.46,"Finalizada"]
["Nuevo depósito interior de regulación en la EDAM Gran Tarajal  FDCAN 2021/2025",0,0,0,0,0,"TUINEJE","m3",null,0]
["ACCIÓN 4: Ampliación y mejoras de conducciones de transporte y redes de distribución",{"$f":"SUM(B184:B200)","v":168661.08000000002},{"$f":"SUM(C190:C200)","v":0},{"$f":"SUM(D190:D200)","v":0},{"$f":"SUM(E184:E200)","v":3295003.07},{"$f":"SUM(F184:F200)","v":220359.99000000002},null,"kms de Red ",{"$f":"SUM(I185:I200)","v":30.472000000000001},{"$f":"B183+C183+D183+E183+F183","v":3684024.14},"terminada parcial"]
["INFORME COSTES DE PERSONAL DIRECTO E INDIRECTO:",20339.25,null,null,null,{"$f":"4072.97+2667.88","v":6740.85},null,null,null,{"$f":"B184+C184+D184+E184+F184","v":27080.1}]
["AYTO LA OLIVA: conducción Avda Juan Carlos I",146748.29,0,0,0,0,"LA OLIVA",null,null,146748.29,"Finalizada"]
["Ejecutado por el Ayto de Pájara",1573.54,0,0,0,0,"PÁJARA",null,null,1573.54,"Finalizada"]
["Renovación y ampliación de diámetro de la red de transporte de Lajares - El Roque",0,0,0,572949.69999999995,0,"LA OLIVA","kms de Red ",5.4219999999999997,572949.69999999995,"Finalizada"]
["Sustitución tubería de impulsión desde la EDAM G.TARAJAL hasta la EB a Corral Blanco",0,0,0,1168018.8600000001,0,"TUINEJE","kms de Red ",14.04,1168018.8600000001,"Finalizada"]
["Ampliación red de impulsión E.B. Marcos Sánchez hasta depósito Guerime",0,0,0,286228.90000000002,0,"TUINEJE","kms de Red ",3.84,286228.90000000002,"Finalizada"]
["Sustitución del tramo de la red de transporte desde depósito La Herradura hasta depósito de Fimapaire, desde PK3 de la FV-1 hasta rotonda de Guisguey",0,0,0,412978.67,0,"PUERTO ROSARIO","kms de Red ",2.54,412978.67,"Finalizada"]
["Renovación y sustitución red de transporte Fimapaire - Morro del Puerco",0,0,0,652012.62,3477.5,null,"kms de Red ",1.89,655490.12,"Finalizada"]
["Red de transporte depósito de Pájara - arqueta cruce Fayagua",0,0,0,202814.32,0,null,"kms de Red ",2.74,202814.32,"Finalizada"]
["Renovación parcial red de impulsión planta G.Tarajal a depósito Gran Tarajal pueblo  FDCAN 2021/2025",0,0,0,0,0,null,null,null,0]
["Suministro de 4 lotes de bombas y cuadros eléctricos para la red de distribución insular  FDCAN 2021/2025",0,0,0,0,0,null,null,null,0]
["Canalización impulsión planta desaladora EDAM Pto Rosario a depósito de La Herradura  ",0,0,0,0,210141.64,"PUERTO ROSARO","kms de Red ",0,210141.64,"Próx. FDCAN  "]
["Conducción por gravedad Guerime - Las Hermosas - La Pared  FDCAN 2021/2025",0,0,0,0,0,null,null,null,0]
["Red de distribución Gran Tarajal  FDCAN 2021/2025",0,0,0,0,0,null,null,null,0]
["Conducción por gravedad depósito Cabecera Morro Francisco Bayuyo - cruce de Lajares - Lajares  FDCAN 2021/2025",0,0,0,0,0,null,null,null,0]
["Conducción de alimentación a depósito de Tindaya TM La Oliva",0,0,0,0,0,"LA OLIVA",null,null,0]
["Proyecto de sustitución de diversas redes urbanas de distribución",0,0,0,0,0,"FUERTEVENTURA",null,null,0]
["ACCIÓN 5: Sistema de gestión de caudales y control de mermas",{"$f":"SUM(B202:B202)","v":0},0,2035615.36,719420.39,0,null,"poblac Beneficiada",30000,{"$f":"B201+C201+D201+E201+F201","v":2755035.75},"Terminada"]
["Sistema fijo de telectura con trasmisión y tratamiento de datos en tiempo real del parque de contadores de abonados (fase I - Puerto del Rosario)",0,0,2035615.36,719420.39,0,"PUERTO ROSARIO","habitant.",30000,2755035.75,"Finalizada"]
["ACCIÓN 6: Depuración de aguas residuales",{"$f":"SUM(B204:B206)","v":116410.22999999998},41015.5,71857.37,0,0,null,"ml de long.de red",{"$f":"SUM(I204:I206)","v":396},{"$f":"B203+C203+D203+E203+F203","v":229283.09999999998},"Terminada"]
["Acondici.alcantarillado y depuradora aguas residuales Urbanización La Pared",4333.5,41015.5,0,0,0,"PÁJARA","ml",46,45349,"Finalizada"]
["Acondic.depuradoras de Antigua, Valles de Ortega, Triquivijate (ejecutado Ayto Antigua)",{"$f":"40708.92+36666.32+34701.49","v":112076.72999999998},0,0,0,0,"ANTIGUA","ml",null,112076.72999999998,"Finalizada"]
["Acondicionamiento del colector de aguas depuradas en Morro Jable ",0,0,71857.37,0,0,"PÁJARA","ml",350,71857.37,"Finalizada"]
["ACCIÓN 8: Conservación y mejora del dominio público hidráulico",{"$f":"SUM(B208:B210)","v":0},{"$f":"SUM(C208:C210)","v":0},16503.8,1205.8599999999999,2207.5300000000002,null,"Superf. mejorada (m2)",{"$f":"SUM(I209:I210)","v":0},{"$f":"B207+C207+D207+E207+F207","v":19917.189999999999},"terminada parcial"]
["INFORME COSTES DE PERSONAL DIRECTO E INDIRECTO:",0,0,614.29999999999995,0,{"$f":"40.8+26.73","v":67.53},null,null,null,{"$f":"B208+C208+D208+E208+F208","v":681.82999999999993}]
["\nAyto de Betancuria: Encauz y canaliz  tramo del cauce pbco Bco Las Peñitas y mejora acceso a parcelas  en Lomo Las Tierras (Vega de Río Palmas)\n",0,0,15889.5,1205.8599999999999,0,"BETANCURIA","m2",0,17095.36,"Próx. FDCAN "]
["Acondicionamiento de márgenes y acceso del Barranco de Bácher. Montaña Hendida\n",0,0,0,0,2140,"TUINEJE","m2",0,2140,"Próx. FDCAN  "]
["Eje 2.7 Zonas comerciales abiertas",{"$f":"SUM(B212:B212)","v":17617.18},43559.7,947823.02,509857.22,1116991.8899999999,null,"Superf. mejorada (m2)",{"$f":"SUM(I213:I223)","v":11760},{"$f":"SUM(B211:F211)","v":2635849.0099999998}]
["ACCIÓN 7:  Revitalización Zonas Comerciales Abiertas   ",{"$f":"SUM(B213:B223)","v":17617.18},{"$f":"SUM(C213:C223)","v":43559.7},947823.02,509857.22,1116991.8899999999,null,null,null,{"$f":"B212+C212+D212+E212+F212","v":2635849.0099999998},"terminada parcial"]
["INFORME COSTES DE PERSONAL DIRECTO E INDIRECTO:",0,0,28438.93,0,{"$f":"20645.63+13523.34","v":34168.97},null,null,null,{"$f":"SUM(B213:F213)","v":62607.9}]
["Ejecutado por el Ayto de Pájara: suministro y colocación barandillas Morro Jable",10847.66,0,0,0,0,"PÁJARA","m2",null,{"$f":"B214+C214+D214+E214+F214","v":10847.66},"Finalizada"]
["Ejecutado por el Ayto de Puerto del Rosario: Asfaltad.calles transve.León Castillo / Virgen Peña",6769.52,0,0,0,0,"PUERTO ROSARIO","m2",null,6769.52,"Finalizada"]
["Proyecto ZCA Gran Tarajal   ",0,0,0,17418.22,0,"TUINEJE","m2",null,17418.22,"Próx. FDCAN  "]
[" ZCA Virgen de la Peña (PUERTO DEL ROSARIO)  ",0,17494.5,0,0,0,"PUERTO ROSARIO","m2",null,17494.5,"Próx. FDCAN  "]
[" ZCA León y Castillo (PUERTO DEL ROSARIO)  ",0,0,0,17412.75,0,"PUERTO ROSARIO","m2",null,17412.75,"Próx. FDCAN"]
["ZCA Corralejo :  \"ACONDICIONAMIENTO RODONAL Y PEATONAL AVDA NTRA SRA DEL CARMEN TRAMO: C/ANZUELO  A C/ACORAZADO; (FASE 3 ZCA CORRALEJO)\"",0,14980,315207.98,224377.36,0,"LA OLIVA","m2",4160,554565.34,"Finalizada"]
["ZCA Caleta de Fuste  FDCAN 2021/2025",0,0,0,0,0,"ANTIGUA",null,null,0]
["ZCA Morro Jable  FDCAN 2021/2025",0,0,0,0,0,"PÁJARA",null,null,0]
["Proyecto acondicionamiento de las C/Euforbia, C/Maxorata y aledaños  TM Pájara  ",0,0,0,0,1082822.92,"PÁJARA","m2",4600,1082822.92,"Próx. FDCAN  "]
["Cubierta del Barranco del Ciervo entre las C/Drago y C/Laurel TM Pájara",0,11085.2,604176.11,250648.89,0,"PÁJARA","m2",3000,865910.2,"Finalizada"]
["Eje 2.8 Energía Renovables",{"$f":"SUM(B225+B228+B244+B254+B277+B279)","v":795186.69},{"$f":"SUM(C225+C228+C244+C254+C277+C279)","v":1192202.6499999999},{"$f":"SUM(D225+D228+D244+D254+D277+D279)","v":411269.26999999996},{"$f":"SUM(E225+E228+E244+E254+E277+E279)","v":767902.28},{"$f":"SUM(F225+F228+F244+F254+F277+F279)","v":1565520.4000000001},null,"Reducc.gases efecto invernadero: Tn CO2 Evitados",null,{"$f":"B224+C224+D224+E224+F224","v":4732081.29}]
["ACCIÓN 1: electrificación mediante ER en explotaciones ganaderas no conectadas a red",{"$f":"SUM(B226+B227)","v":99685.1},{"$f":"SUM(C226+C227)","v":196335.17},{"$f":"SUM(D226:D227)","v":227312.59},{"$f":"SUM(E226:E227)","v":60152.73},{"$f":"F227+F226","v":128312.97},null,"TnCO2 evitados",{"$f":"SUM(I227)","v":590.32000000000005},{"$f":"B225+C225+D225+E225+F225","v":711798.55999999994},"Terminada"]
["INFORME COSTES DE PERSONAL DIRECTO E INDIRECTO:",15530.78,17754.189999999999,35450.019999999997,0,0,null,null,null,{"$f":"B226+C226+D226+E226+F226","v":68734.989999999991}]
["Electrificación mediante energías renovables de explotaciones ganaderas no conectadas a red",84154.32,178580.98,191862.57,{"$f":"15000+45152.73","v":60152.73},128312.97,"INSULAR","TnCO2 evitados",{"$f":"102.95+303.04+78.94+105.39","v":590.32000000000005},643063.57000000007,"Finalizada"]
["ACCIÓN 2: Dotación de alumbrado público mediante ER a espacios públicos de la isla de Fuerteventura",{"$f":"SUM(B229:B243)","v":320287.49},{"$f":"SUM(C229:C243)","v":316083.01999999996},{"$f":"SUM(D229:D243)","v":50290.459999999992},{"$f":"SUM(E229:E243)","v":62701.31},{"$f":"SUM(F229:F243)","v":867027.87000000011},null,"TnCO2 evitados",{"$f":"SUM(I230:I243)","v":75.325999999999993},{"$f":"B228+C228+D228+E228+F228","v":1616390.1500000001},"terminada parcial"]
["INFORME COSTES DE PERSONAL DIRECTO E INDIRECTO:",21109.439999999999,28582.75,25361.66,0,0,null,null,null,{"$f":"SUM(B229:F229)","v":75053.850000000006}]
["Ejecutado por el Ayto de Antigua: Luminarias fotovoltaicas en Antigua",165663.45000000001,0,0,0,0,"ANTIGUA",null,null,{"$f":"B230+C230+D230+E230+F230","v":165663.45000000001},"Finalizada"]
["Ejecutado por el Ayto de Pájara:  Regenerac.sistema eólico-diésel Puertito de la Cruz",19131.599999999999,0,0,0,0,"PÁJARA",null,null,19131.599999999999,"Finalizada"]
["Alumbrado público solar autónomo en carril peatonal bici Las Playitas Tramo I",106625.5,0,0,0,0,"Tuineje","TnCO2 evitados",5.0659999999999998,106625.5,"Finalizada"]
["Alumbrado público fotovoltaico rotonda Valle Sta Inés FV-30/ FV-416",2407.5,63132.86,0,0,0,"BETANCURIA","TnCO2 evitados",4.6399999999999997,65540.36,"Finalizada"]
["Alumbrado solar autónomo carril bici Caleta Fuste Las Salinas (redac.proyecto)",2675,0,0,0,0,"ANTIGUA",null,null,2675,"Finalizada"]
["Alumbrado solar autónomo en zonas rurales. TM de Betancuria",0,32676.57,380.13,0,0,"Betancuria ","TnCO2 evitados",1.23,33056.699999999997,"Finalizada"]
["Alumbrado solar autónomo en zonas rurales: La Oliva",0,49880.11,1541.42,0,0,"La Oliva","TnCO2 evitados",1.92,51421.53,"Finalizada"]
["Alumbrado solar autónomo en zonas rurales. TM Puerto del Rosario ",0,52029.15,4289.67,0,0,"PUERTO ROSARIO","TnCO2 evitados",2.1,56318.82,"Finalizada"]
["Alumbrado solar autónomo en zonas rurales: TM de Tuineje",0,27145.64,12032.67,0,0,"Tuineje","TnCO2 evitados",1.46,39178.31,"Finalizada"]
["Alumbrado solar autónomo en zonas rurales. TM de Pájara ",0,48635.94,4009.91,0,0,"Pájara ","TnCO2 evitados",1.97,52645.850000000006,"Finalizada"]
["Alumbrado solar autónomo en zonas rurales. Redacción de proyectos I y II F",2675,0,2675,0,0,"Fuerteventura","TnCO2 evitados",null,5350,"Finalizada"]
["Alumbrado público con E.R autovía del aeropuerto (Tramo 1º)",0,14000,0,54713.81,744403.81,"PUERTO ROSARIO","TnCO2 evitados",53.37,813117.62000000011,"Finalizada"]
["Alumbrado público solar autónomo en carril peatonal bici Las Playitas Tramo II",0,0,0,0,122624.06,"Tuineje","TnCO2 evitados",3.57,122624.06,"Finalizada"]
["Alumbrado fotovoltáico intersecciones red viaria",0,0,0,7987.5,0,"Tuineje","TnCO2 evitados",null,7987.5,"Próx. FDCAN "]
["ACCIÓN 3:  Dotación de instalaciones de producción con desconexión de la red mediante ER fotovoltaica y eólica en edificios públicos del Cabildo Insular de Fuerteventura ",{"$f":"SUM(B245:B253)","v":3675.67},{"$f":"SUM(C245:C253)","v":124989.55},{"$f":"SUM(D245:D253)","v":86278.43},{"$f":"SUM(E245:E253)","v":147495.42000000001},{"$f":"SUM(F245:F253)","v":0},null,"TnCO2 evitados",{"$f":"SUM(I246:I252)","v":61.870000000000005},{"$f":"B244+C244+D244+E244+F244","v":362439.07},"terminada parcial"]
["INFORME COSTES DE PERSONAL DIRECTO E INDIRECTO:",572.66999999999996,11302.55,12941.92,0,0,null,null,null,{"$f":"SUM(B245:F245)","v":24817.14}]
["Centro de interpretación de energías renovables Morro Velosa ",0,31500,3500,0,0,"Betancuria","TnCO2 evitados",null,{"$f":"B246+C246+D246+E246+F246","v":35000},"Próx. FDCAN "]
["Instalación y actualización de energía renovable el faro del Tostón",0,42969.38,2878.5,0,0,"LA OLIVA","TnCO2 evitados",12.35,45847.88,"Finalizada"]
["Autoabastecimiento con renovables Granja Experimental de Pozo Negro.",0,13999.88,0,0,0,"ANTIGUA","TnCO2 evitados",null,13999.88,"Próx. FDCAN  "]
["Autoabastecimiento Museo de la sal.",1551.5,0,66958.009999999995,1863.75,0,"ANTIGUA","TnCO2 evitados",9.85,70373.259999999995,"Finalizada"]
["Autoabastecimiento con renovables Molino de Tiscamanita. ",1551.5,19065.240000000002,0,0,0,"Tuineje","TnCO2 evitados",2.4700000000000002,20616.740000000002,"Finalizada"]
["Dotación de ER Puntos limpios y Plantas de Transferencia  ",0,4173,0,0,0,"INSULAR","TnCO2 evitados",null,4173,"Próx. FDCAN  "]
["Autoabastecimiento ER colegio público La Hubara ",0,1979.5,0,145631.67000000001,0,"PUERTO ROSARIO","TnCO2 evitados",37.200000000000003,147611.17000000001,"Finalizada"]
["Proyecto electrificación solar granja de Pozo Negro y ferias  [tramita agricultura]",0,0,0,0,0,null,"TnCO2 evitados",null,0]
["ACCIÓN 4: Dotación de instalaciones de producción para autoconsumo mediante ER a edificos públicos  ",{"$f":"SUM(B255:B276)","v":244130.77},193113.03,11012.17,354196.94,381134.46,null,"TnCO2 evitados",{"$f":"SUM(I256:I276)","v":412.77999999999992},{"$f":"B254+C254+D254+E254+F254","v":1183587.3699999999},"terminada parcial"]
["INFORME COSTES DE PERSONAL DIRECTO E INDIRECTO:",34424.22,13437.55,2066.17,0,0,null,null,null,{"$f":"SUM(B255:F255)","v":49927.94}]
["Instalación energía renovable perrera municipal de Pájara",0,0,0,0,65205.97,"PÁJARA","TnCO2 evitados",12.84,{"$f":"B256+C256+D256+E256+F256","v":65205.97},"Finalizada"]
["Conexión de instalaciones de autoconsumo del PALACIO DE FORMACIÓN Y CONGRESOS",0,0,0,0,22390.82,"PUERTO ROSARIO","TnCO2 evitados",25.5,22390.82,"Finalizada"]
["Conexión de instalaciones de autoconsumo de Cocheras",0,0,0,0,26889.82,"PUERTO ROSARIO","TnCO2 evitados",23.91,26889.82,"Finalizada"]
["Instalaciones E.R. ALBERGUE DE TEFIA ",0,0,0,3354.75,38891.949999999997,"PUERTO ROSARIO","TnCO2 evitados",23.47,42246.7,"Finalizada"]
["Instalación fotovoltaica Museo Faro Punta de Jandía",23177.24,0,0,0,0,"PÁJARA","TnCO2 evitados",null,23177.24,"Finalizada"]
["Instalación solar autoconsumo Matadero insular",4280,0,0,0,0,"PUERTO ROSARIO","TnCO2 evitados",null,4280,"Finalizada"]
["Instalación fotovoltaica autoconsumo Casa Palacio",85342.76,0,0,0,0,"PUERTO ROSARIO","TnCO2 evitados",null,85342.76,"Finalizada"]
["Instalación fotovoltaica autoconsumo Archivo Insular",43098.27,4766.88,0,0,0,"PUERTO ROSARIO","TnCO2 evitados",23.97,47865.149999999994,"Finalizada"]
["Instalación solar fotovoltaica autoconsumo Cocheras",43108.28,5204.6000000000004,0,0,0,"PUERTO ROSARIO","TnCO2 evitados",23.89,48312.88,"Finalizada"]
["Instalaciones autoconsumo Museo del Queso",5000,42417.34,0,0,0,"ANTIGUA","TnCO2 evitados",15.76,47417.34,"Finalizada"]
["Autoconsumo edificio Patronato de Turismo ",0,73473.070000000007,0,0,0,"PUERTO ROSARIO","TnCO2 evitados",49.43,73473.070000000007,"Finalizada"]
["Autoconsumo Edificios municipales La Oliva  ",1900,3100,2236.5,53420.68,{"$f":"58215.64+8025+3210+9095+2996","v":81541.64},"LA OLIVA","TnCO2 evitados",{"$f":"19.12+28.54","v":47.66},142198.82,"Próx. FDCAN "]
["Autoconsumo Edificios municipales de Tuineje   ",1900,3100,0,59757.32,0,"TUINEJE","TnCO2 evitados",19.12,64757.32,"Próx. FDCAN "]
["Autoconsumo Edificios municipales de Puerto del Rosario   ",1900,3100,2236.5,88692.5,5885,"PUERTO ROSARIO","TnCO2 evitados",21.78,101814,"Próx. FDCAN "]
["Autoconsumo Edificios municipales de ANTIGUA  ",0,0,0,49347.87,5243,"ANTIGUA","TnCO2 evitados",23.4,54590.87,"Próx. FDCAN "]
["Autoconsumo Edificios municipales de BETANCURIA ",0,0,2236.5,48478.74,5885,"BETANCURIA","TnCO2 evitados",16.739999999999998,56600.24,"Próx. FDCAN "]
["Autoconsumo Edificios municipales de PÁJARA  ",0,0,2236.5,51145.08,5136,"PÁJARA","TnCO2 evitados",29.65,58517.58,"Próx. FDCAN "]
["Autoconsumo E.R. CEIP PABLO NERUDA",0,0,0,0,6955,"PUERTO ROSARIO","TnCO2 evitados",null,6955,"Próx. FDCAN "]
["Autoconsumo E.R. CEIP CRISTÓBAL GARCÍA BLAIRZY",0,0,0,0,6955,"Tuineje","TnCO2 evitados",null,6955,"Próx. FDCAN "]
["Autoconsumo E.R. ESTACIÓN DE GUAGUAS DE PTO DEL ROSARIO",0,0,0,0,110155.26,"PUERTO ROSARIO","TnCO2 evitados",34.090000000000003,110155.26,"Finalizada"]
["Instalaciones fotovoltaicas de 15 kw nominales para autoconsumo en la biblioteca municipal de Puerto del Rosaro (AYTO PUERTO ROSARIO)",0,44513.59,0,0,0,"PUERTO ROSARIO","TnCO2 evitados",21.57,44513.59,"Finalizada"]
["ACCIÓN 5: Restauración o mantenimiento de molinos y aeromotores de la Isla de Fuerteventura ",{"$f":"SUM(B278)","v":127407.66},{"$f":"SUM(C278)","v":0},0,0,0,"PCRestauraciónoCI ROSARIO","NºInfraestructuras",72,{"$f":"B277+C277+D277+E277+F277","v":127407.66},"terminada"]
["Restauración o mantenimiento de molinos o aeromotores",127407.66,0,0,0,0,"Fuerteventura","NºInfra.creadas",72,127407.66,"Finalizada"]
["ACCIÓN 6 : Fomento de ER mediante implantación de vehículos eléctricos y puntos de recarga en la isla de Fuerteventura",{"$f":"SUM(B280:B284)","v":0},{"$f":"SUM(C280:C284)","v":361681.88},{"$f":"SUM(D280:D284)","v":36375.619999999995},{"$f":"SUM(E280:E284)","v":143355.88},{"$f":"SUM(F281:F284)","v":189045.1},"PCFomentodeCI ROSARIO","TnCO2 evitados",{"$f":"SUM(I281:I284)","v":997.17},{"$f":"B279+C279+D279+E279+F279","v":730458.48},"terminada parcial"]
["INFORME COSTES DE PERSONAL DIRECTO E INDIRECTO:",null,32706.16,28029.62,0,0,"Tuineje",null,null,60735.78]
["Implantación de puntos de recarga mediante fotolineras en Playas  \n",0,0,6420,0,0,"Fuerteventura","TnCO2 evitados",null,6420,"Próx. FDCAN"]
["Implantación de puntos de recarga convencionales (Corralejo,Pto,Caleta F,G Tarajal, C.Calma, M Jable)",0,174321.22,0,0,0,"La oliva, Antigua, Tuineje, Pájara, Pto","TnCO2 evitados",220.74,174321.22,"Finalizada"]
["Implantación de puntos de recarga convencionales (La Oliva,Antigua,La Lajita, Cotillo,Betancuria)",0,0,1926,0,74964.05,"La oliva, Antigua, Betancuria, Pájara","TnCO2 evitados",654.80999999999995,76890.05,"Finalizada"]
["Fomento del vehículo eléctrico",0,154654.5,0,143355.88,114081.05,"Fuerteventura","TnCO2 evitados",{"$f":"43.44+43.43+34.75","v":121.62},412091.43,"Finalizada"]
["Eje 2.9 Creación, mejora y/o modernización de infraestructuras y equipamientos en el sector primario",{"$f":"B286+B295+B296+B299","v":208401.09999999998},{"$f":"C286+C295+C296+C299","v":1691689.6800000002},{"$f":"D286+D295+D296+D299","v":2366120.2999999998},{"$f":"E286+E295+E296+E299","v":102726.39999999999},{"$f":"F286+F295+F296+F299","v":0},null,null,null,{"$f":"B285+C285+D285+E285+F285","v":4368937.4800000004}]
["ACCIÓN 1: mejoras de la Granja de Pozo Negro",{"$f":"SUM(B287:B294)","v":163527.41999999998},{"$f":"SUM(C287:C294)","v":1691689.6800000002},{"$f":"SUM(D287:D294)","v":2366120.2999999998},{"$f":"SUM(E287:E294)","v":102726.39999999999},{"$f":"SUM(F287:F294)","v":0},null,"m2 Superf. mejorada",{"$f":"SUM(I293:I294)+I289","v":20165},{"$f":"B286+C286+D286+E286+F286","v":4324063.8000000007},"Terminada"]
["INFORME COSTES DE PERSONAL DIRECTO E INDIRECTO",10858.45,64438.04,21689.25,0,0,null,null,null,{"$f":"SUM(B287:F287)","v":96985.74}]
["Remodelación instalaciones de FEAGA",108254.43,0,0,0,0,"ANTIGUA","nº",2,{"$f":"B288+C288+D288+E288+F288","v":108254.43},"Finalizada"]
["Acondicionamiento de viales en la Granja de Pozo Negro",8174.8,559003.17000000004,0,0,0,"ANTIGUA","m2",12665,567177.97000000009,"Finalizada"]
["Invernadero Multitúnel para vivero",27144.74,430925.7,0,0,0,"ANTIGUA",null,null,458070.44,"Finalizada"]
["Nave industrial para la granja experimental de Pozo Negro  (Almazara) ",9095,478515.9,0,0,0,"ANTIGUA",null,null,487610.9,"Finalizada"]
["Construcción de dos naves para exhibición de ganado en feria ganadera (FEAGA)",0,17501.400000000001,782047.94,0,0,"ANTIGUA",null,null,799549.34,"Finalizada"]
["Pabellón FEAGA  en la granja experimental de Pozo Negro",0,98515.87,584383.35,0,0,"ANTIGUA","m2",2500,682899.22,"Finalizada"]
["Nave e instalaciones destinadas a servicio agropecuarios",0,42789.599999999999,977999.76,102726.39999999999,0,"ANTIGUA","m2",5000,1123515.76,"Finalizada"]
["ACCIÓN 2: Mercado Agrario",0,0,0,0,0]
["ACCIÓN 3: Matadero Insular de Fuerteventura",{"$f":"SUM(B297:B298)","v":18796.09},{"$f":"SUM(C297:C298)","v":0},{"$f":"SUM(D297:D298)","v":0},0,0,null,"nºproyect.",1,{"$f":"B296+C296+D296+E296+F296","v":18796.09},"terminada parcial"]
["INFORME COSTES DE PERSONAL DIRECTO E INDIRECTO:",1248.0899999999999,0,0,0,0,null,null,null,{"$f":"SUM(B297:F297)","v":1248.0899999999999}]
["Proyecto de acondicionamiento y ampliación matadero insular de Fuerteventura  ",17548,0,0,0,0,"PUERTO ROSARIO","nº",1,{"$f":"B298+C298+D298+E298+F298","v":17548},"Próx. FDCAN "]
["ACCIÓN 4: Equipamiento nave Llano de la Higuera para mercado interior",{"$f":"SUM(B300:B302)","v":26077.59},0,0,0,0,null,"nºproyectos",2,{"$f":"B299+C299+D299+E299+F299","v":26077.59},"Terminada"]
["INFORME COSTES DE PERSONAL DIRECTO E INDIRECTO:",1731.59,0,0,0,0,null,null,null,{"$f":"SUM(B300:F300)","v":1731.59}]
["Redac.proyecto Instalaciones de almacenamiento y distribución de Alimentos para ganado",8346,0,0,0,0,"INSULAR","nº",1,{"$f":"B301+C301+D301+E301+F301","v":8346},"Finalizada"]
["Instalaciones y acondicionamiento para nave destinada a mercado interior agrícola  \n",16000,0,0,0,0,"TUINEJE","nº",1,16000,"finalizada"]
["Eje 2.10 Creación, mejora y/o modernización de otras infraestructuras que mejoren la competitividad de la economía canaria",{"$f":"SUM(B304)","v":1117840.8500000001},{"$f":"C304","v":1013510.29},{"$f":"SUM(D304)","v":360130.83999999997},319006.70999999996,1120804.9100000001,null,null,null,{"$f":"B303+C303+D303+E303+F303","v":3931293.6}]
["ACCIÓN 1: Plan insular de asfaltado de caminos municipales Fuerteventura",{"$f":"SUM(B305:B347)","v":1117840.8500000001},{"$f":"SUM(C305:C347)","v":1013510.29},{"$f":"SUM(D305:D347)","v":360130.83999999997},{"$f":"SUM(E305:E347)","v":319006.70999999996},{"$f":"SUM(F305:F347)","v":1120804.9100000001},null,"m2 Superf. mejorada",{"$f":"SUM(I306:I347)","v":221429.75},{"$f":"B304+C304+D304+E304+F304","v":3931293.6},"terminada parcial"]
["Redac. Proyectos,costes informes superv, (CD + CI s/informe)",134510.22,38929.870000000003,13404.76,0,{"$f":"20716.11+13569.51","v":34285.620000000003},null,null,null,{"$f":"SUM(B305:F305)","v":221130.47}]
["TM ANTIGUA"]
["Ayto Antigua:  AP calle Real y Plaza del Queso",95396.06,0,0,0,0,"ANTIGUA",null,null,{"$f":"B307+C307+D307+E307+F307","v":95396.06},"Finalizada"]
["Asfaltado camino Campeche  (Vista de Las Pocetas)",0,197789.51,0,0,0,"ANTIGUA","m2",14200,197789.51,"Finalizada"]
["Asfaltado camino Espino del Cuervo (Antigua-Triquivijate)",0,160105.07999999999,14735.93,0,0,"ANTIGUA","m2",12300,174841.00999999998,"Finalizada"]
["Asfaltado camino Cernícalo-La Garza (La Corte)",0,24729.95,116185.72,0,0,"ANTIGUA","m2",8840,140915.67000000001,"Finalizada"]
["Asfaltado del  Camino Mafasca  (Las Pocetas) ",0,698.71,0,77448.88,0,"ANTIGUA","m2",3240,78147.590000000011,"Finalizada"]
["TM BETANCURIA:"]
["Asfaltado caminos en Valle de Sta Inés (Casas Blancas y El Chorrillo) (tm Betancuria) ",{"$f":"35610.08+2492.71","v":38102.79},0,0,0,0,"Betancuria","m2",2772,{"$f":"B313+C313+D313+E313+F313","v":38102.79},"Finalizada"]
["Asfaltado camino Castillo de Lara (Vega Río Palmas) (TM Betancuria)",0,34613.57,0,0,0,"Betancuria","m2",2565.85,34613.57,"Finalizada"]
["Asfaltado camino Playa del Valle (TM Betancuria)",0,8956.9699999999993,0,0,0,"Betancuria","m2",600.28,8956.9699999999993,"Finalizada"]
["Asfaltado de las calles San Bartolomé , lugar la Montañeta y Sta. Inés, en el Valle de Santa Inés (lote 2)",0,0,0,3727.5,159106.66,"Betancuria ","m2",11799.47,162834.16,"Finalizada"]
["Asfaltado de la Calle Presidente Hormiga, la Villa de Betancuria (lote 1)",0,0,0,2662.5,59267.87,"Betancuria ","m2",4251.3599999999997,61930.37,"Finalizada"]
["Asfaltado  calle La Aceituna, San Juan Torcaz y Gadigfer de la Salle, en la Vega de Rio Palmas (lote 3)",0,0,0,2662.5,{"$f":"60735.23+7115.5","v":67850.73000000001},"Betancuria ","m2",4343.3100000000004,{"$f":"B318+C318+D318+E318+F318","v":70513.23000000001},"Finalizada"]
["Acondicionamiento calle Los Callejones (Valle Sta Inés) (lote 4)",0,0,0,1597.5,41228.449999999997,"Betancuria ","m2",2968.56,{"$f":"B319+C319+D319+E319+F319","v":42825.95},"Finalizada"]
["TM LA OLIVA:"]
["Asfaltados en Tindaya: Callejón de La Luz y Ágave (TM La Oliva)",0,118730.04,2688.94,0,0,"LA OLIVA","m2",6920,{"$f":"B321+C321+D321+E321+F321","v":121418.98},"Finalizada"]
["Asfaltados en La Oliva: Chácara (TM La Oliva) ",0,1164.1600000000001,0,11589.73,0,"LA OLIVA","m2",427.5,12753.89,"Finalizada"]
["Estabilización del camino El Cotillo. Acceso a Piedra Playa",0,3210,0,0,0,"LA OLIVA","m2",null,3210,"Finalizada"]
["TM PUERTO DEL ROSARIO:"]
["AYTO PUERTO ROSARIO: obras de infraestructura viaria ",473423.58,0,0,0,0,"PUERTO ROSARIO","m2",20531.310000000001,{"$f":"B325+C325+D325+E325+F325","v":473423.58},"Finalizada"]
["Asfaltado caminos rurales Ampuyenta (TM Puerto del Rosario)",27488.1,0,0,0,0,"PUERTO ROSARIO",null,null,27488.1,"Finalizada"]
["Asfaltado caminos rurales Llanos de La Concepción (TM Puerto Rosario)",0,73239.12,0,0,0,"PUERTO ROSARIO","m2",7425,73239.12,"Finalizada"]
["Asfaltado caminos rurales  Rincón del Moral (TM Puerto del Rosario) ",27800.74,0,0,0,0,"PUERTO ROSARIO","m2",2655,27800.74,"Finalizada"]
["Asfaltado camino Rincón en Tetir  (TM Puerto del Rosario)",120800.86,0,0,0,0,"PUERTO ROSARIO","m2",11265,120800.86,"Finalizada"]
["Adecuación vías de accesibilidad rural en el municipio: Reasfaltado de calle en los Llanos de la Concepción.",0,1605,0,99282.14,0,"PUERTO ROSARIO","m2",10241.700000000001,100887.14,"Finalizada"]
["Adecuación vías de accesibilidad rural en el municipio:  Asfaltado camino rural en Tesjuates",0,48769.38,0,0,0,"PUERTO ROSARIO","m2",3825,48769.38,"Finalizada"]
["Asfaltado de calle rural en La Ampuyenta ",0,1164.1600000000001,0,9965.2099999999991,0,"PUERTO ROSARIO","m2",1093,11129.369999999999,"Finalizada"]
["Acceso rodado y peatonal a la Casa de Los Mayores de Casillas del Ángel  \n",0,5350,0,0,2354,"PUERTO ROSARIO","m2",null,7704,"Próx. FDCAN "]
["Remodelación y Acondicionamiento de caminos públicos de acceso a Tetir desde Glorietas de la travesía FV-10  FDCAN 2021/2025",0,0,0,0,0,"PUERTO ROSARIO","m2",null,0]
["TM PÁJARA:"]
["Asfaltado de caminos rurales y reasfaltado de calles en diferentes núcleos del municipio de Pájara. FASE II ",0,0,0,0,168242.32,"PÁJARA","m2",14000,{"$f":"B336+C336+D336+E336+F336","v":168242.32},"Finalizada"]
["Aterrazado de terraplén y aparcamientos junto al campo de fútbol de Morro Jable",0,0,201177.11,105220.75,0,"PÁJARA","m2",800,306397.86,"Finalizada"]
["Mejora del tramo de la carretera FV-618 desde Cardón hasta su encuentro con la FV-605  FDCAN 2021/2025",0,0,0,0,0,null,null,null,0]
["TM TUINEJE:"]
[" Asfaltado Caminos rurales en Juan Gopar",0,79972.460000000006,0,0,0,"Tuineje","m2",5629.5,{"$f":"B340+C340+D340+E340+F340","v":79972.460000000006},"Finalizada"]
["Asfaltado Caminos rurales en Rosa de los James",47604.3,0,0,0,0,"Tuineje","m2",3624,47604.3,"Finalizada"]
["Asfaltado Camino municipal Tesejerague - Los Sorribos, Tramo II",0,43934.03,0,0,0,"Tuineje","m2",2682,43934.03,"Finalizada"]
["Asfaltado Camino Los Sorribos en Tesejerague (Tramo I)",53492.35,0,0,0,0,"Tuineje","m2",4180,53492.35,"Finalizada"]
["Asfaltado Camino Fuentezuela",{"$f":"13362.44+85859.41","v":99221.85},0,0,0,0,"Tuineje","m2",7515,99221.85,"Finalizada"]
["Adecuación de vías accesibilidad rural. FASE I: Asfaltado caminos públicos: E Caracol, Las Casitas, recta de Morales, Rosa de Los James, Los Sorribos y Tesejerague ",0,170548.28,11938.38,0,0,"Tuineje","m2",13583.31,182486.66,"Finalizada"]
["Adecuación de vías accesibilidad rural. Fase II: Asfaltado caminos públicos en Tiscamanita, Tequital",0,0,0,4850,299782.40000000002,"Tuineje","m2",18707.599999999999,304632.40000000002,"Finalizada"]
["Adecuación de vías accesibilidad rural. Fase III: Asfaltado caminos públicos en Tuineje y Tequital",0,0,0,0,288686.86,"Tuineje","m2",18444,288686.86,"Finalizada"]
["TOTAL EJE LÍNEA ESTRATÉGICA 2",{"$f":"SUM(B14)","v":12035651.049999997},{"$f":"SUM(C14)","v":12302425.449999999},{"$f":"SUM(D14)","v":13594184.43},{"$f":"SUM(E14)","v":13702088.900000002},{"$f":"SUM(F14)","v":11633984.720000001},null,null,null,63268334.549999997]
[" LÍNEA ESTRATÉGICA 3. APOYO A LA EMPLEABILIDAD  (MAX 20% FDCAN)",{"$f":"B350+B354+B359+B362+B364","v":1280707.9300000002},2605870.7999999998,3696033.33,3693299.9,{"$f":"SUM(F350+F354+F359+F362+F364)","v":5076226.96},null,null,null,{"$f":"B349+C349+D349+E349+F349","v":16352138.920000002}]
[" Eje 3.1 Incentivos a la contratación para colectivos de difícil inserción",{"$f":"SUM(B351:B353)","v":238738.45},620247.12,{"$f":"SUM(D351:D353)","v":496977.62},729997.4,557382.76,null,null,null,2643343.3499999996]
["ACCIÓN 1:  Líneas de financiación para iniciativas empresariales ",1255.56,303363.31,269550.96999999997,46991.42,0,null,null,null,621161.26,"terminada parcial"]
["ACCIÓN 2:  Proyectos de inserción laboral mediante enfoque integral ",237482.89,0,67816.78,251691.72,0,null,null,null,556991.39,"terminada parcial"]
["ACCIÓN 3: Líneas de financiación al fomento de la contratación ",null,316883.81,159609.87,431314.26,557382.76,null,null,null,1465190.7,"terminada"]
[" Eje 3.2 Programa de mejora del capital humano",{"$f":"SUM(B355:B358)","v":380209.12},1306983.92,1776024.56,471665.77,64191.14,null,null,null,{"$f":"B354+C354+D354+E354+F354","v":3999074.5100000002}]
["ACCIÓN 1: Servicio de intermediación e inserción laboral",18521.95,3768.06,0,0,0,null,null,null,22290.010000000002,"terminada"]
["ACCIÓN 2:  Programas de Formación en Alternancia con el Empleo",76240.31,854747.99,1598391.17,154853.68,64191.14,null,null,null,2748424.29,"terminada"]
["ACCIÓN 3: Acciones formativas adaptadas a las personas con discapacidad",0,4495.57,0,0,0,null,null,null,4495.57,"terminada"]
["ACCIÓN 4:  Programas de empleo y formación para desempleados con deficit formación",285446.86,443972.3,177633.39,316812.09000000003,0,null,null,null,1223864.6399999999,"terminada parcial"]
[" Eje 3.3 Fomento de la formación para adultos con escaso nivel de estudios",{"$f":"SUM(B360:B361)","v":31187.16},66513.850000000006,144779.10999999999,{"$f":"SUM(E360:E361)","v":108169.07},126876.28,null,null,null,{"$f":"B359+C359+D359+E359+F359","v":477525.47}]
["ACCIÓN 1: Acciones formativas para trabajadores ocupados",26371.55,42184.03,40241.74,54358.45,69914,null,null,null,233069.77000000002,"terminada"]
["ACCIÓN 2: Cursos formativos dirigidos a desempleados",4815.6099999999997,24329.82,104537.37,53810.62,56962.28,null,null,null,244455.69999999998,"terminada"]
["Eje 3.4 Planes de empleo hogares con todos miembros sin recursos ",{"$f":"SUM(B363)","v":488933.86},300981.53000000003,1136876.03,2229486.1800000002,4168848.98,null,null,null,{"$f":"B362+C362+D362+E362+F362","v":8325126.5800000001}]
["ACCIÓN 1: Programas de empleo dirigido a desempleados en riesgo de exclución social",488933.86,300981.53000000003,1136876.03,2229486.1800000002,4168848.98,null,null,null,8325126.5800000001,"terminada"]
["Eje 3.5 Programas de empleo sobre colectivos de personas con titulación que ayuden a mejorar el modelo productivo",{"$f":"SUM(B365:B367)","v":141639.34},311144.38,141376.01,{"$f":"SUM(E365:E367)","v":153981.48000000001},158927.79999999999,null,null,null,{"$f":"B364+C364+D364+E364+F364","v":907069.01}]
["ACCIÓN 1: Servicio de orientación hacia la emprendeduría",0,0,0,0,0,null,null,null,0,"terminada"]
["ACCIÓN 2: Servicio de asesoramiento para el diseño y puesta en marcha del proyecto empresarial",0,34531.410000000003,0,0,0,null,null,null,34531.410000000003,"terminada"]
["ACCIÓN 3: Becas de prácticas profesionales no laborales para titulados universitarios y de formación profesional ",141639.34,276612.96999999997,141376.01,153981.48000000001,158927.79999999999,null,null,null,872537.59999999986,"terminada"]
["TOTAL ",{"$f":"B349+B14+B5","v":13855423.489999996},{"$f":"C349+C14+C5","v":15277028.369999999},{"$f":"D349+D14+D5","v":17890217.759999998},{"$f":"E349+E14+E5","v":17995388.800000001},{"$f":"F349+F14+F5","v":17560211.68},null,null,null,{"$f":"B368+C368+D368+E368+F368","v":82578270.099999994}]
["GAC 80%",{"$f":"B368*0.8","v":11084338.791999998},12221622.696,14312174.207999999,{"$f":"E368*0.8","v":14396311.040000001},14048169.344000001,null,null,null,{"$f":"B369+C369+D369+E369+F369","v":66062616.079999998}]
["CABILDO FTV 20%",{"$f":"B368-B369","v":2771084.6979999989},3055405.6739999987,3578043.5519999992,{"$f":"E368-E369","v":3599077.76},3512042.3359999992,null,null,null,{"$f":"B370+C370+D370+E370+F370","v":16515654.019999996}]
[]
["TOTAL Programa Solicitado,  Ejecutado y después de Audioría  FDCAN (16-20)",13570515.91,15277028.369999999,16819792.550000001,17394986.800000001,17560211.68,null,null,null,{"$f":"B372+C372+D372+E372+F372","v":80622535.310000002}]
[]
["En este color las actuaciones ejecutadas por los ayuntamientos"]